bitfinex-derivatives/quotes_BTCF0:USTF0_20241003
["timestamp","ask_amount","ask_price","bid_price","bid_amount"]
[1727991209920,0.082239,60801.0,60800.0,0.19181524]
[1727991209921,0.202239,60801.0,60800.0,0.19181524]
[1727991210533,0.082242,60799.0,60798.0,0.02499227]
[1727991211422,0.082242,60799.0,60798.0,0.00246706]
[1727991212319,1.176682,60799.0,60798.0,0.00246706]
[1727991213226,1.177682,60799.0,60798.0,0.00246706]
[1727991213829,1.538482,60799.0,60798.0,0.00246706]
[1727991214127,0.49344,60798.0,60789.0,0.13043037]
[1727991214331,0.9628,60799.0,60789.0,0.13043037]
[1727991214332,0.082253,60791.0,60790.0,0.10995612]
[1727991215534,0.083253,60791.0,60790.0,0.10995612]
[1727991216125,0.084253,60791.0,60790.0,0.10995612]
[1727991218231,0.084253,60791.0,60789.0,0.05415199]
[1727991218436,0.002,60791.0,60789.0,0.05415199]
[1727991218735,0.082254,60790.0,60789.0,0.05415199]
[1727991218936,0.082254,60790.0,60789.0,0.16343467]
[1727991221228,0.083254,60790.0,60789.0,0.16343467]
[1727991221536,0.084254,60790.0,60789.0,0.16343467]
[1727991221929,0.084254,60790.0,60789.0,0.05415199]
[1727991222328,0.3608,60806.0,60796.0,0.082246]
[1727991222530,0.4808,60806.0,60797.0,0.0622]
[1727991222737,0.12,60799.0,60797.0,0.0622]
[1727991223043,0.12,60799.0,60798.0,1.5]
[1727991223437,0.12,60799.0,60797.0,0.0622]
[1727991224833,0.122,60799.0,60797.0,0.0622]
[1727991225932,0.122,60799.0,60797.0,0.08405316]
[1727991234647,0.204242,60799.0,60797.0,0.08405316]
[1727991237544,0.122,60799.0,60797.0,0.08405316]
[1727991237855,0.082243,60798.0,60797.0,0.08405316]
[1727991239652,0.083243,60798.0,60797.0,0.08405316]
[1727991240045,0.084243,60798.0,60797.0,0.08405316]
[1727991248556,0.084243,60798.0,60797.0,0.1661472]
[1727991249256,0.084243,60798.0,60797.0,0.27538866]
[1727991249754,0.084243,60798.0,60797.0,0.27545731]
[1727991249957,0.084243,60798.0,60797.0,0.27545836]
[1727991250153,0.084243,60798.0,60797.0,0.19331019]
[1727991251955,0.084243,60798.0,60797.0,0.29164056]
[1727991252152,0.084243,60798.0,60797.0,0.19331019]
[1727991252551,0.3608,60807.0,60797.0,0.31331019]
[1727991252856,0.443031,60807.0,60802.0,0.30088218]
[1727991253153,0.443031,60807.0,60803.0,0.23990221]
[1727991253459,0.443031,60807.0,60804.0,0.10925703]
[1727991253658,0.444031,60807.0,60805.0,0.10925703]
[1727991253859,0.444031,60807.0,60806.0,0.10925703]
[1727991254152,0.083231,60807.0,60806.0,0.10925703]
[1727991254356,0.084231,60807.0,60806.0,0.10925703]
[1727991254947,0.001,60807.0,60806.0,0.10925703]
[1727991255952,0.001,60807.0,60806.0,0.11025703]
[1727991256159,0.001,60807.0,60806.0,0.5695759]
[1727991256363,0.082222,60814.0,60806.0,0.55328903]
[1727991256561,0.082222,60814.0,60810.0,0.08205149]
[1727991256754,0.082222,60814.0,60811.0,0.0657]
[1727991257259,0.36228,60815.0,60813.0,0.082223]
[1727991257561,0.50378332,60817.0,60813.0,0.08195229]
[1727991257562,0.083698,60817.0,60813.0,0.08195229]
[1727991257753,0.12246752,60819.0,60814.0,0.19023315]
[1727991257953,0.12246752,60819.0,60815.0,0.08195229]
[1727991258149,0.12246752,60819.0,60812.0,0.202223]
[1727991258150,0.12246752,60819.0,60814.0,0.08195229]
[1727991258660,0.12246752,60819.0,60818.0,0.06552219]
[1727991258848,0.00246752,60819.0,60818.0,0.06552219]
[1727991259049,0.00246752,60819.0,60814.0,0.08195229]
[1727991259260,0.3608,60827.0,60818.0,0.202216]
[1727991259460,0.4808,60827.0,60818.0,0.202216]
[1727991259657,0.12,60824.0,60818.0,0.202216]
[1727991260263,0.12,60824.0,60818.0,0.206216]
[1727991261058,0.121,60824.0,60818.0,0.206216]
[1727991262065,0.4818,60824.0,60818.0,0.206216]
[1727991262453,0.4818,60824.0,60819.0,0.0309]
[1727991263554,0.122,60824.0,60819.0,0.0329]
[1727991263753,0.4828,60824.0,60819.0,0.0329]
[1727991268166,0.122,60824.0,60819.0,0.0329]
[1727991270569,0.002,60824.0,60819.0,0.0329]
[1727991270760,0.002,60824.0,60819.0,0.115115]
[1727991270973,0.002,60824.0,60821.0,0.12]
[1727991271871,0.002,60824.0,60822.0,0.03]
[1727991273282,0.004,60824.0,60822.0,0.03]
[1727991273763,0.005,60824.0,60822.0,0.03]
[1727991274564,0.005,60824.0,60823.0,0.0321]
[1727991275974,0.006,60824.0,60823.0,0.114309]
[1727991276572,0.007,60824.0,60823.0,0.114309]
[1727991276987,0.007,60824.0,60823.0,0.607549]
[1727991277175,0.007,60824.0,60823.0,1.207549]
[1727991278771,0.006,60824.0,60823.0,1.207549]
[1727991278980,0.007,60824.0,60823.0,1.213549]
[1727991279276,0.001,60824.0,60823.0,1.213549]
[1727991279475,0.001,60824.0,60823.0,1.215549]
[1727991279677,0.001,60824.0,60823.0,1.217549]
[1727991280380,0.001,60824.0,60823.0,1.219549]
[1727991284805,0.001,60824.0,60823.0,0.619549]
[1727991286381,0.3608,60833.0,60823.0,0.619549]
[1727991286382,0.3608,60833.0,60823.0,1.14541154]
[1727991286583,0.03978096,60832.0,60831.0,0.12]
[1727991289185,0.005,60832.0,60831.0,0.12]
[1727991292084,0.00246662,60837.0,60835.0,0.082193]
[1727991292286,0.00246662,60837.0,60836.0,0.28192507]
[1727991292485,0.00246662,60837.0,60836.0,0.232792]
[1727991292880,0.00246662,60837.0,60836.0,0.28190629]
[1727991293489,0.01146662,60837.0,60836.0,0.28190629]
[1727991294385,0.01546662,60837.0,60836.0,0.28190629]
[1727991294908,0.01646662,60837.0,60836.0,0.28290629]
[1727991295198,0.01746662,60837.0,60836.0,1.78290629]
[1727991295697,0.01746662,60837.0,60836.0,1.733792]
[1727991296897,0.01746662,60837.0,60836.0,1.78290629]
[1727991297285,0.01746662,60837.0,60836.0,1.733792]
[1727991298600,0.01746662,60837.0,60836.0,0.233792]
[1727991299595,0.01746662,60837.0,60836.0,0.726912]
[1727991299985,1e-08,60837.0,60836.0,0.233792]
[1727991300384,1e-08,60837.0,60836.0,1.733792]
[1727991303398,0.3608,60844.0,60843.0,0.12]
[1727991304490,0.3698,60844.0,60843.0,0.121]
[1727991304894,0.3718,60844.0,60843.0,0.122]
[1727991308292,0.3718,60844.0,60843.0,0.14684992]
[1727991312301,0.4122581,60844.0,60843.0,0.14684992]
[1727991313197,0.0514581,60844.0,60843.0,0.14684992]
[1727991317599,0.011,60844.0,60843.0,0.14684992]
[1727991318301,0.05800812,60844.0,60843.0,0.14684992]
[1727991318702,0.093181,60844.0,60843.0,0.02684992]
[1727991318998,0.08219,60837.0,60836.0,0.00084]
[1727991319199,0.3608,60837.0,60824.0,0.0302]
[1727991319402,0.082199,60831.0,60826.0,0.12]
[1727991320424,0.082199,60831.0,60830.0,0.02745113]
[1727991320811,0.085199,60831.0,60830.0,0.02745113]
[1727991322010,0.085199,60831.0,60830.0,0.02945113]
[1727991325997,0.085199,60831.0,60830.0,0.14945113]
[1727991329207,0.085199,60831.0,60830.0,0.02945113]
[1727991330510,0.003,60831.0,60830.0,0.14945113]
[1727991330699,0.003,60831.0,60830.0,0.23165113]
[1727991331110,0.003,60831.0,60830.0,0.14945113]
[1727991334913,0.003,60831.0,60830.0,1.64945113]
[1727991339011,0.003,60831.0,60830.0,1.68175113]
[1727991346817,0.003,60831.0,60830.0,1.73086542]
[1727991347027,0.003,60831.0,60830.0,1.68175113]
[1727991347709,0.003,60831.0,60830.0,1.73091607]
[1727991348229,0.003,60831.0,60830.0,1.68175113]
[1727991348416,0.003,60831.0,60830.0,1.73091538]
[1727991348923,0.003,60831.0,60830.0,1.68175113]
[1727991349628,0.04316364,60831.0,60830.0,1.68175113]
[1727991349941,0.04316364,60831.0,60830.0,1.56175113]
[1727991350131,0.04316364,60831.0,60830.0,1.68175113]
[1727991350728,0.003,60831.0,60830.0,1.76395113]
[1727991356125,0.0431772,60831.0,60830.0,1.76395113]
[1727991357042,0.003,60831.0,60830.0,1.81311558]
[1727991357826,0.003,60831.0,60830.0,1.76395113]
[1727991359132,0.003,60831.0,60830.0,1.68175113]
[1727991368528,0.003,60831.0,60830.0,1.87137315]
[1727991368925,0.003,60831.0,60830.0,1.76370342]
[1727991369437,0.003,60831.0,60830.0,1.68175113]
[1727991370025,0.003,60831.0,60830.0,1.76370342]
[1727991370236,0.085199,60831.0,60830.0,0.02945113]
[1727991372056,0.085199,60831.0,60830.0,0.09509932]
[1727991372337,0.17178763,60831.0,60830.0,0.02945113]
[1727991374742,0.17177309,60831.0,60830.0,0.02945113]
[1727991376449,0.12526018,60831.0,60830.0,0.02945113]
[1727991376746,0.17176789,60831.0,60830.0,0.02945113]
[1727991378330,0.12526018,60831.0,60830.0,0.02945113]
[1727991379138,0.085199,60831.0,60830.0,0.02945113]
[1727991380045,0.085199,60831.0,60830.0,0.0269855]
[1727991381042,0.085199,60831.0,60830.0,0.09259673]
[1727991381742,0.003,60831.0,60830.0,0.09259673]
[1727991381933,0.003,60831.0,60830.0,0.0588855]
[1727991382336,0.442976,60848.0,60830.0,0.0588855]
[1727991382536,0.442976,60848.0,60840.0,0.12]
[1727991382537,0.3608,60848.0,60840.0,0.12]
[1727991382741,0.3608,60848.0,60840.0,0.26778734]
[1727991382946,0.3608,60850.0,60845.0,0.16918408]
[1727991383146,0.082175,60849.0,60848.0,0.16918408]
[1727991383343,0.082175,60849.0,60848.0,0.12]
[1727991383643,0.082175,60849.0,60848.0,0.16918408]
[1727991383844,0.082175,60849.0,60848.0,0.12]
[1727991384048,0.082175,60849.0,60848.0,0.16918408]
[1727991384446,0.082175,60849.0,60848.0,0.12]
[1727991384954,0.094175,60849.0,60848.0,0.121]
[1727991385439,0.108175,60849.0,60848.0,0.122]
[1727991385645,0.026,60849.0,60848.0,0.122]
[1727991388660,0.026,60849.0,60848.0,0.15025859]
[1727991393463,0.023,60849.0,60848.0,0.15025859]
[1727991394068,0.02,60849.0,60848.0,0.15025859]
[1727991394957,0.02,60849.0,60848.0,0.23243459]
[1727991395162,0.012,60849.0,60848.0,0.28061867]
[1727991395361,0.012,60849.0,60848.0,0.23143459]
[1727991395557,0.003,60849.0,60848.0,0.23043459]
[1727991395782,0.007,60849.0,60848.0,0.23043459]
[1727991395955,0.004,60849.0,60848.0,0.23043459]
[1727991400670,0.3608,60856.0,60850.0,0.082173]
[1727991400862,0.3608,60856.0,60855.0,0.12]
[1727991402194,0.3628,60856.0,60855.0,0.12]
[1727991402772,0.3678,60856.0,60855.0,0.12]
[1727991403266,0.3678,60856.0,60855.0,0.122]
[1727991403267,0.3728,60856.0,60855.0,0.122]
[1727991407261,0.3728,60856.0,60855.0,0.14994251]
[1727991409370,0.3728,60856.0,60855.0,0.19912659]
[1727991411175,0.3728,60856.0,60855.0,0.14994251]
[1727991412267,0.3728,60856.0,60855.0,0.21554385]
[1727991415494,0.012,60856.0,60855.0,0.21554385]
[1727991417281,0.012,60856.0,60855.0,0.33844491]
[1727991417479,0.012,60856.0,60855.0,0.25649262]
[1727991417782,0.012,60856.0,60855.0,0.33831343]
[1727991417985,0.012,60856.0,60855.0,0.33832062]
[1727991418384,0.012,60856.0,60855.0,0.25649981]
[1727991421681,0.012,60856.0,60855.0,0.13649981]
[1727991421884,0.094165,60856.0,60855.0,0.13649981]
[1727991422093,0.094165,60856.0,60855.0,0.21836189]
[1727991423390,0.094165,60856.0,60855.0,0.13649981]
[1727991424386,0.094165,60856.0,60855.0,0.02994251]
[1727991425696,0.094165,60856.0,60855.0,0.14994251]
[1727991431297,0.13525585,60856.0,60855.0,0.14994251]
[1727991432295,0.094165,60856.0,60855.0,0.14994251]
[1727991432493,0.094165,60856.0,60855.0,0.25674521]
[1727991435792,0.094165,60856.0,60855.0,0.25674185]
[1727991439405,0.094165,60856.0,60855.0,0.11188138]
[1727991439600,0.094165,60856.0,60855.0,0.23188138]
[1727991442007,0.094165,60856.0,60855.0,0.33864934]
[1727991442907,0.094165,60856.0,60855.0,0.14994251]
[1727991445101,0.094165,60856.0,60855.0,0.23188138]
[1727991445302,0.094165,60856.0,60855.0,0.14994251]
[1727991446603,0.094165,60856.0,60855.0,0.19909022]
[1727991448513,0.094165,60856.0,60855.0,0.14994251]
[1727991448925,0.094165,60856.0,60855.0,0.19909446]
[1727991449123,0.094165,60856.0,60855.0,0.14994251]
[1727991450822,0.094165,60856.0,60855.0,0.19909683]
[1727991451021,0.094165,60856.0,60855.0,0.14994251]
[1727991454517,0.094165,60856.0,60855.0,0.25681295]
[1727991456625,0.012,60856.0,60855.0,0.25681295]
[1727991456923,0.012,60856.0,60855.0,0.35533182]
[1727991457117,0.012,60856.0,60855.0,0.25681295]
[1727991457516,0.012,60856.0,60855.0,0.35533182]
[1727991457722,0.012,60856.0,60855.0,0.25681295]
[1727991459524,0.012,60856.0,60855.0,0.14994251]
[1727991459833,0.012,60856.0,60855.0,0.25686966]
[1727991461538,0.00246502,60869.0,60862.0,0.082156]
[1727991461836,0.00246502,60869.0,60868.0,0.12]
[1727991462029,0.3608,60881.0,60868.0,1.62]
[1727991462030,0.082137,60877.0,60868.0,1.62]
[1727991462228,0.082137,60877.0,60876.0,0.12]
[1727991464123,0.35405784,60888.0,60876.0,0.12]
[1727991464124,0.082123,60887.0,60879.0,0.082134]
[1727991464330,0.082123,60887.0,60886.0,0.12]
[1727991466034,0.082123,60887.0,60886.0,0.121]
[1727991466429,0.082123,60887.0,60886.0,0.122]
[1727991471133,0.082123,60887.0,60886.0,0.15029183]
[1727991471927,0.694843,60887.0,60886.0,0.03029183]
[1727991472129,0.082136,60877.0,60876.0,0.0322]
[1727991472328,0.082136,60877.0,60876.0,0.06122646]
[1727991472329,0.202136,60877.0,60876.0,0.06122646]
[1727991472528,0.562936,60877.0,60876.0,0.02902646]
[1727991472743,0.562936,60877.0,60869.0,0.0309]
[1727991472744,0.4808,60877.0,60869.0,0.0309]
[1727991472937,0.082142,60873.0,60869.0,0.0309]
[1727991473140,0.082146,60870.0,60869.0,0.0309]
[1727991473741,0.082146,60870.0,60869.0,0.05933735]
[1727991474930,0.082146,60870.0,60869.0,0.06533735]
[1727991476042,0.084146,60870.0,60869.0,0.06433735]
[1727991477034,0.084146,60870.0,60869.0,0.05933735]
[1727991477633,0.082146,60870.0,60869.0,0.05933735]
[1727991477840,0.083146,60870.0,60869.0,0.05933735]
[1727991478138,0.082146,60870.0,60869.0,0.06133735]
[1727991478337,0.082146,60870.0,60869.0,0.06233735]
[1727991478742,0.082146,60870.0,60869.0,0.06133735]
[1727991478934,0.083146,60870.0,60869.0,0.06133735]
[1727991479340,0.083146,60870.0,60869.0,0.06233735]
[1727991480731,0.083146,60870.0,60869.0,0.06133735]
[1727991481439,0.001,60870.0,60869.0,0.06133735]
[1727991483537,0.082141,60874.0,60869.0,0.06133735]
[1727991483744,0.082141,60874.0,60873.0,0.12]
[1727991484947,0.083141,60874.0,60873.0,0.12]
[1727991486045,0.083141,60874.0,60870.0,1.50084]
[1727991486246,0.083141,60874.0,60873.0,0.12]
[1727991487345,0.083141,60874.0,60873.0,0.121]
[1727991491441,0.083141,60874.0,60873.0,0.001]
[1727991494941,0.443941,60874.0,60873.0,0.001]
[1727991497548,1.57802905,60874.0,60873.0,0.001]
[1727991498236,1.62567325,60874.0,60873.0,0.001]
[1727991498846,1.98647325,60874.0,60873.0,0.001]
[1727991499753,1.897581,60874.0,60873.0,0.001]
[1727991500754,1.297581,60874.0,60873.0,0.001]
[1727991500953,1.897581,60874.0,60873.0,0.001]
[1727991501156,1.175981,60874.0,60873.0,0.001]
[1727991501543,1.897581,60874.0,60873.0,0.001]
[1727991502754,1.297581,60874.0,60873.0,0.001]
[1727991504259,1.297581,60874.0,60869.0,0.02843735]
[1727991504558,0.08215,60867.0,60866.0,0.0623]
[1727991505356,0.082163,60857.0,60855.0,0.00246455]
[1727991505655,0.082165,60856.0,60855.0,0.00246455]
[1727991506251,0.575125,60856.0,60855.0,5.5e-07]
[1727991506455,1.175125,60856.0,60855.0,5.5e-07]
[1727991506658,1.161125,60856.0,60855.0,5.5e-07]
[1727991507454,1.162125,60856.0,60855.0,5.5e-07]
[1727991508761,1.883725,60856.0,60855.0,5.5e-07]
[1727991510561,1.882725,60856.0,60855.0,5.5e-07]
[1727991510759,0.082184,60842.0,60841.0,0.02854753]
[1727991510955,0.803784,60842.0,60832.0,0.0294434]
[1727991511150,0.082201,60829.0,60828.0,7.5e-07]
[1727991511458,0.082207,60825.0,60824.0,2e-07]
[1727991511665,0.082207,60825.0,60811.0,0.14819381]
[1727991511866,0.082215,60819.0,60811.0,0.14819381]
[1727991512159,0.443015,60819.0,60818.0,0.02673841]
[1727991512361,0.08222,60815.0,60814.0,0.04642132]
[1727991512561,0.08222,60815.0,60807.0,0.16470531]
[1727991512562,0.082224,60812.0,60807.0,0.16470531]
[1727991512869,0.08223,60808.0,60807.0,0.04668531]
[1727991513069,0.56303,60808.0,60807.0,0.00246608]
[1727991513266,0.56303,60808.0,60807.0,8e-08]
[1727991513563,1.12639,60808.0,60807.0,8e-08]
[1727991513764,1.12139,60808.0,60807.0,8e-08]
[1727991514355,1.12139,60808.0,60791.0,0.19]
[1727991514356,1.64516,60808.0,60791.0,0.19]
[1727991514552,0.082243,60798.0,60791.0,0.19]
[1727991514958,0.077243,60798.0,60791.0,0.19]
[1727991515459,0.077243,60798.0,60788.0,0.0661]
[1727991515663,0.077243,60798.0,60789.0,0.19]
[1727991516561,0.5518,60808.0,60791.0,0.005]
[1727991516860,0.082246,60796.0,60791.0,0.005]
[1727991517064,0.082247,60796.0,60789.0,0.195]
[1727991517966,0.082247,60795.0,60789.0,0.19]
[1727991518166,0.082247,60795.0,60791.0,0.005]
[1727991518463,0.3608,60792.0,60791.0,0.005]
[1727991519260,0.19,60803.0,60791.0,0.005]
[1727991519261,0.3608,60810.0,60791.0,0.85928]
[1727991519463,0.3528,60810.0,60809.0,0.19]
[1727991519760,0.082223,60814.0,60809.0,0.19]
[1727991520064,0.082223,60814.0,60810.0,1.5]
[1727991520265,0.3608,60820.0,60809.0,0.19]
[1727991520563,0.082215,60819.0,60810.0,0.032]
[1727991520759,0.082216,60818.0,60810.0,1.5628]
[1727991521065,0.3608,60820.0,60810.0,2.65612]
[1727991521264,0.3608,60820.0,60816.0,0.19]
[1727991523360,0.3648,60820.0,60816.0,0.19]
[1727991524361,0.3638,60820.0,60816.0,0.19]
[1727991525067,0.3648,60820.0,60816.0,0.19]
[1727991525964,0.3648,60820.0,60816.0,0.21876388]
[1727991526373,0.447014,60820.0,60816.0,0.02876388]
[1727991526573,0.3648,60820.0,60811.0,0.19]
[1727991526966,0.082217,60818.0,60811.0,0.19]
[1727991527280,0.082219,60817.0,60811.0,0.19]
[1727991527968,0.082219,60817.0,60810.0,0.06376]
[1727991528176,0.082219,60817.0,60810.0,0.0628]
[1727991529576,0.082219,60817.0,60810.0,0.09158953]
[1727991530071,0.3608,60813.0,60810.0,0.09158953]
[1727991530266,0.3608,60813.0,60811.0,0.001]
[1727991530769,0.3608,60813.0,60810.0,0.09358953]
[1727991531075,0.082219,60817.0,60810.0,0.09358953]
[1727991531279,0.3608,60813.0,60810.0,0.09358953]
[1727991531572,0.082219,60817.0,60811.0,0.002]
[1727991531773,0.3608,60813.0,60811.0,0.002]
[1727991532871,0.3608,60813.0,60810.0,0.09158953]
[1727991533176,0.3608,60813.0,60810.0,0.09258953]
[1727991533375,0.3608,60813.0,60810.0,0.09158953]
[1727991533677,0.3608,60813.0,60811.0,0.083225]
[1727991533978,0.3618,60813.0,60811.0,0.082225]
[1727991536580,0.3618,60813.0,60811.0,0.083225]
[1727991538579,0.001,60813.0,60811.0,0.083225]
[1727991540372,0.001,60813.0,60812.0,0.082224]
[1727991542376,0.3608,60816.0,60811.0,0.191]
[1727991542586,0.3608,60816.0,60813.0,0.082222]
[1727991543377,0.3618,60816.0,60813.0,0.082222]
[1727991544885,0.001,60816.0,60813.0,0.082222]
[1727991545082,0.3608,60816.0,60813.0,0.082222]
[1727991545589,0.3608,60816.0,60813.0,0.16403827]
[1727991546090,0.146114,60820.0,60813.0,0.16403827]
[1727991546288,0.3608,60816.0,60813.0,0.16403827]
[1727991546473,0.3608,60816.0,60815.0,0.08181627]
[1727991546889,0.3608,60816.0,60814.0,0.08181627]
[1727991547485,0.3608,60816.0,60815.0,0.10300847]
[1727991548090,0.082215,60819.0,60815.0,0.10300847]
[1727991548387,0.082215,60819.0,60816.0,0.10300847]
[1727991548586,0.082215,60819.0,60817.0,0.10300847]
[1727991548783,0.082215,60819.0,60818.0,0.10300847]
[1727991549287,0.445015,60819.0,60818.0,0.10300847]
[1727991549883,0.449015,60819.0,60818.0,0.10300847]
[1727991550688,0.449015,60819.0,60818.0,0.20078641]
[1727991551393,0.451015,60819.0,60818.0,0.20078641]
[1727991551591,0.090215,60819.0,60818.0,0.20078641]
[1727991551992,0.451015,60819.0,60818.0,0.20078641]
[1727991552188,0.090215,60819.0,60818.0,0.20078641]
[1727991552388,0.451015,60819.0,60818.0,0.10300847]
[1727991553190,0.090215,60819.0,60818.0,0.10300847]
[1727991553390,0.451015,60819.0,60818.0,0.10300847]
[1727991554785,0.451015,60819.0,60818.0,0.1308088]
[1727991555992,0.3688,60819.0,60818.0,0.1308088]
[1727991556184,0.451015,60819.0,60818.0,0.1308088]
[1727991556380,0.451015,60819.0,60818.0,0.10996275]
[1727991556582,1.46208,60819.0,60816.0,0.08216242]
[1727991556787,0.3688,60819.0,60811.0,0.09777794]
[1727991556983,0.5588,60819.0,60815.0,0.08217411]
[1727991557192,0.082219,60816.0,60815.0,0.08217411]
[1727991557415,0.082219,60816.0,60809.0,0.082228]
[1727991557416,0.49328,60818.0,60814.0,0.08217411]
[1727991557689,0.08222,60815.0,60814.0,0.08217411]
[1727991557893,0.082222,60814.0,60813.0,0.08217411]
[1727991558084,0.082222,60814.0,60813.0,0.18567285]
[1727991558284,0.082222,60814.0,60813.0,0.08217411]
[1727991559094,0.443022,60814.0,60813.0,0.08217411]
[1727991559281,0.3608,60814.0,60813.0,0.18560688]
[1727991559481,0.443022,60814.0,60813.0,0.18560688]
[1727991560892,0.082223,60813.0,60812.0,0.08213177]
[1727991561093,0.082223,60813.0,60812.0,0.18558209]
[1727991561986,0.443023,60813.0,60812.0,0.18558209]
[1727991562388,0.443023,60813.0,60812.0,0.18658209]
[1727991562894,0.443023,60813.0,60812.0,0.08313177]
[1727991563894,0.443023,60813.0,60812.0,0.11296457]
[1727991565085,0.082223,60813.0,60812.0,0.11296457]
[1727991565396,0.443023,60813.0,60812.0,0.11296457]
[1727991565588,0.443023,60813.0,60812.0,0.0308328]
[1727991565782,0.443023,60813.0,60812.0,0.11296457]
[1727991565992,0.443023,60813.0,60812.0,0.0308328]
[1727991566190,0.443023,60813.0,60812.0,0.11296457]
[1727991566395,0.443023,60813.0,60812.0,0.0308328]
[1727991571291,0.443023,60813.0,60812.0,0.001]
[1727991573498,0.443023,60813.0,60812.0,0.06666891]
[1727991574312,0.443023,60813.0,60812.0,0.001]
[1727991574803,0.803823,60813.0,60812.0,0.001]
[1727991575701,0.082223,60813.0,60812.0,0.0666705]
[1727991576300,0.803823,60813.0,60812.0,0.0666705]
[1727991577902,0.803823,60813.0,60812.0,0.001]
[1727991579911,0.082223,60813.0,60812.0,0.001]
[1727991580103,0.803823,60813.0,60812.0,0.001]
[1727991582007,0.83320805,60813.0,60812.0,0.001]
[1727991582795,0.082234,60805.0,60804.0,0.0656705]
[1727991582997,0.082235,60804.0,60803.0,0.06816128]
[1727991583198,0.112235,60804.0,60803.0,0.00246676]
[1727991583400,0.112235,60804.0,60799.0,0.06569452]
[1727991583401,0.08224,60800.0,60799.0,0.06569452]
[1727991583711,0.082243,60798.0,60797.0,0.06569452]
[1727991584236,0.082245,60797.0,60796.0,0.06569452]
[1727991584595,0.082246,60796.0,60793.0,0.06569452]
[1727991584801,0.082251,60792.0,60791.0,0.06569452]
[1727991585108,0.082246,60796.0,60786.0,0.08213177]
[1727991585109,0.081253,60791.0,60790.0,0.06569452]
[1727991585406,0.082255,60789.0,60788.0,0.06569452]
[1727991585607,0.082255,60789.0,60784.0,0.08213177]
[1727991585608,0.082257,60788.0,60787.0,0.06569452]
[1727991585802,0.081257,60788.0,60786.0,0.06569452]
[1727991586007,0.081257,60788.0,60785.0,0.06569452]
[1727991586008,0.082259,60786.0,60785.0,0.06569452]
[1727991586405,0.081257,60788.0,60783.0,0.67556853]
[1727991586705,0.082262,60784.0,60783.0,0.55556853]
[1727991587101,0.082262,60784.0,60783.0,0.09492853]
[1727991587302,0.082262,60784.0,60783.0,0.02923401]
[1727991587502,0.081257,60788.0,60782.0,0.09759452]
[1727991587811,0.082263,60783.0,60782.0,0.09759452]
[1727991588414,0.082263,60783.0,60782.0,0.0319]
[1727991589201,0.082263,60783.0,60782.0,0.06093931]
[1727991589412,0.083263,60783.0,60782.0,0.06093931]
[1727991589600,0.444063,60783.0,60782.0,0.06093931]
[1727991590105,0.445063,60783.0,60782.0,0.06093931]
[1727991592807,0.084263,60783.0,60782.0,0.06093931]
[1727991593016,0.445063,60783.0,60782.0,0.06093931]
[1727991596914,0.445063,60783.0,60782.0,0.02903931]
[1727991597105,0.3628,60783.0,60781.0,0.00246722]
[1727991597310,0.082265,60782.0,60781.0,0.00246722]
[1727991597709,0.082265,60782.0,60781.0,0.03254299]
[1727991597906,0.082265,60782.0,60781.0,0.00246722]
[1727991598812,0.083265,60782.0,60781.0,0.00246722]
[1727991599007,0.082273,60776.0,60775.0,0.06569452]
[1727991599207,0.082274,60775.0,60774.0,0.06569452]
[1727991599511,0.082274,60775.0,60773.0,0.06569452]
[1727991599813,0.082274,60775.0,60772.0,0.29770757]
[1727991600207,0.082277,60773.0,60772.0,0.09519909]
[1727991600418,0.082277,60773.0,60772.0,0.12]
[1727991600604,0.08228,60771.0,60770.0,0.18546404]
[1727991600804,0.08228,60771.0,60770.0,0.14955728]
[1727991601215,0.082277,60774.0,60771.0,0.082279]
[1727991601413,0.082277,60774.0,60773.0,0.12]
[1727991603221,0.3608,60783.0,60773.0,0.12]
[1727991603513,0.443065,60783.0,60782.0,0.12]
[1727991604226,0.3608,60783.0,60782.0,0.12]
[1727991604408,0.001,60783.0,60782.0,0.12]
[1727991604616,0.001,60783.0,60782.0,0.202265]
[1727991604917,0.082253,60791.0,60782.0,0.12]
[1727991605119,0.082253,60791.0,60788.0,0.12]
[1727991605420,0.082254,60790.0,60788.0,0.12]
[1727991605815,0.082255,60789.0,60788.0,0.12]
[1727991607710,0.088255,60789.0,60788.0,0.12]
[1727991609830,0.088255,60789.0,60785.0,0.26772157]
[1727991610415,0.088255,60789.0,60786.0,0.06546157]
[1727991611113,0.3608,60787.0,60786.0,0.06546157]
[1727991611622,0.3608,60787.0,60785.0,0.20226]
[1727991612420,0.085255,60789.0,60785.0,0.20226]
[1727991612623,0.3608,60786.0,60785.0,0.28439177]
[1727991612919,0.3608,60786.0,60785.0,0.20226]
[1727991613314,0.3608,60786.0,60785.0,0.38942219]
[1727991614024,0.3608,60786.0,60785.0,0.30716219]
[1727991614530,0.3638,60786.0,60785.0,0.22503042]
[1727991616321,0.3638,60786.0,60785.0,0.22504229]
[1727991616520,0.003,60786.0,60785.0,0.22504229]
[1727991616827,0.3638,60786.0,60785.0,0.22504229]
[1727991620424,0.3638,60786.0,60785.0,0.32282023]
[1727991622840,0.003,60786.0,60785.0,0.32282023]
[1727991623030,0.3638,60786.0,60785.0,0.32282023]
[1727991624031,0.3638,60786.0,60785.0,0.22504229]
[1727991625939,0.3638,60786.0,60785.0,0.22487927]
[1727991626643,0.3638,60786.0,60785.0,0.2250151]
[1727991627538,0.3638,60786.0,60785.0,0.3072761]
[1727991628943,0.3608,60786.0,60785.0,0.3072761]
[1727991629142,0.3628,60786.0,60785.0,0.3072761]
[1727991630732,0.3628,60786.0,60785.0,0.30728806]
[1727991630938,0.002,60786.0,60785.0,0.30728806]
[1727991632539,0.002,60786.0,60785.0,0.43251186]
[1727991633147,0.002,60786.0,60785.0,0.30728806]